[Event "24th Bosnjaci Open 2019"]
[Site "Bosnjaci"]
[Date "2019.01.06"]
[Round "5.21"]
[White "Caric, Mato"]
[Black "Mesic, Ismet"]
[Result "1-0"]
[ECO "B12"]
[WhiteElo "2088"]
[BlackElo "1757"]
[Annotator "NA"]
[PlyCount "79"]
[EventDate "2019.01.03"]
[EventType "swiss"]
[EventCountry "CRO"]
[SourceTitle "playchess.com"]
[Source "ChessBase"]
[SourceQuality "1"]
[TimeControl "5400+30"]

1. e4 {[%emt 0:00:30]} c6 {[%emt 0:00:30]} 2. d4 {[%emt 0:00:00]} d5 {[%emt 0:00:30]} 3. e5 {[%emt 0:02:00]} c5 {[%emt 0:00:00]} 4. c3 {[%emt 0:03:30]} Nc6 {[%emt 0:00:00]} 5. Be3 {[%emt 0:03:30]} cxd4 {[%emt 0:06:30]} 6. cxd4 {[%emt 0:00:30]} Bf5 {[%emt 0:00:30]} 7. Bd3 {[%emt 0:00:30]} Bxd3 {[%emt 0:02:30]} 8. Qxd3 {[%emt 0:00:00]} e6 {[%emt 0:00:00]} 9. Ne2 {[%emt 0:15:00]} Nge7 {[%emt 0:21:00]} 10. f4 {[%emt 0:01:30]} Nf5 {[%emt 0:00:30]} 11. Bf2 {[%emt 0:00:30]} Be7 {[%emt 0:01:30]} 12. a3 {[%emt 0:07:30]} O-O {[%emt 0:03:30]} 13. Nd2 {[%emt 0:03:30]} Rc8 {[%emt 0:03:30]} 14. g4 {[%emt 0:06:30]} Nh6 {[%emt 0:01:30]} 15. h3 {[%emt 0:13:30]} Na5 {[%emt 0:02:30]} 16. O-O {[%emt 0:01:30]} Qb6 {[%emt 0:02:30]} 17. b4 {[%emt 0:01:30]} Nc4 {[%emt 0:01:30]} 18. Rfc1 {[%emt 0:05:30]} Qc6 {[%emt 0:19:30]} 19. Nc3 {[%emt 0:08:30]} b5 {[%emt 0:00:30]} 20. Nb3 {[%emt 0:01:30]} a6 {[%emt 0:01:30]} 21. f5 {[%emt 0:03:30]} Qb6 {[%emt 0:10:30]} 22. Nc5 {[%emt 0:04:43]} Bxc5 {[%emt 0:04:28]} 23. bxc5 {[%emt 0:00:12]} Qc6 {[%emt 0:00:22]} 24. Bh4 {[%emt 0:03:48]} Kh8 {[%emt 0:07:48]} 25. f6 {[%emt 0:02:38]} g6 {[%emt 0:01:05]} 26. Bg5 {[%emt 0:00:54]} Ng8 {[%emt 0:00:02]} 27. Rc2 {[%emt 0:00:13]} Rc7 {[%emt 0:01:00]} 28. h4 {[%emt 0:01:22]} a5 {[%emt 0:02:23]} 29. h5 {[%emt 0:02:01]} h6 {[%emt 0:01:55]} 30. hxg6 {[%emt 0:02:08]} fxg6 {[%emt 0:00:40]} 31. Qxg6 {[%emt 0:02:50]} Rh7 {[%emt 0:01:21]} 32. Bf4 {[%emt 0:01:18]} Rff7 {[%emt 0:00:45]} 33. Rh2 {[%emt 0:00:39]} b4 {[%emt 0:01:31]} 34. axb4 {[%emt 0:00:21]} axb4 {[%emt 0:00:02]} 35. Ne2 {[%emt 0:00:20]} Qb7 {[%emt 0:00:17]} 36. Kf2 {[%emt 0:00:33]} b3 {[%emt 0:00:38]} 37. Bxh6 {[%emt 0:01:13]} Nxh6 {[%emt 0:00:50]} 38. Rxh6 {[%emt 0:00:13]} Rxh6 {[%emt 0:00:56]} 39. Qxh6+ {[%emt 0:00:11]} Kg8 {[%emt 0:00:03]} 40. Rh1 {[%emt 0:00:58]} 1-0

[Event "24th Bosnjaci Open 2019"]
[Site "Bosnjaci"]
[Date "2019.01.06"]
[Round "5.22"]
[White "Pleh, Semir"]
[Black "Brkic, Zdenko"]
[Result "1-0"]
[ECO "A32"]
[WhiteElo "1767"]
[BlackElo "2072"]
[Annotator "NA"]
[PlyCount "95"]
[EventDate "2019.01.03"]
[EventType "swiss"]
[EventCountry "CRO"]
[SourceTitle "playchess.com"]
[Source "ChessBase"]
[SourceQuality "1"]
[TimeControl "5400+30"]

1. c4 {[%emt 0:00:30]} e6 {[%emt 0:00:30]} 2. Nf3 {[%emt 0:00:00]} c5 {[%emt 0:00:30]} 3. d4 {[%emt 0:00:00]} cxd4 {[%emt 0:00:30]} 4. Nxd4 {[%emt 0:00:30]} Nf6 {[%emt 0:00:00]} 5. g3 {[%emt 0:00:00]} Nc6 {[%emt 0:00:00]} 6. e3 {[%emt 0:02:00]} Be7 {[%emt 0:00:30]} 7. Bg2 {[%emt 0:00:30]} O-O {[%emt 0:00:30]} 8. O-O {[%emt 0:00:00]} d5 {[%emt 0:02:30]} 9. Nc3 {[%emt 0:01:00]} e5 {[%emt 0:05:30]} 10. Nxc6 {[%emt 0:07:30]} bxc6 {[%emt 0:00:30]} 11. cxd5 {[%emt 0:00:00]} Ba6 {[%emt 0:02:30]} 12. Re1 {[%emt 0:07:00]} cxd5 {[%emt 0:02:30]} 13. Nxd5 {[%emt 0:00:30]} Nxd5 {[%emt 0:00:30]} 14. Bxd5 {[%emt 0:00:30]} Rb8 {[%emt 0:02:30]} 15. e4 {[%emt 0:00:30]} Bc5 {[%emt 0:03:30]} 16. Rb1 {[%emt 0:03:30]} Qb6 {[%emt 0:04:30]} 17. Be3 {[%emt 0:05:30]} Bd4 {[%emt 0:04:30]} 18. b3 {[%emt 0:03:30]} Qb4 {[%emt 0:01:30]} 19. Bxd4 {[%emt 0:02:30]} exd4 {[%emt 0:00:00]} 20. a4 {[%emt 0:00:30]} d3 {[%emt 0:00:00]} 21. Re3 {[%emt 0:00:30]} Rbc8 {[%emt 0:01:30]} 22. Rxd3 {[%emt 0:03:30]} Bxd3 {[%emt 0:03:30]} 23. Qxd3 {[%emt 0:00:30]} Rc3 {[%emt 0:01:30]} 24. Qa6 {[%emt 0:00:30]} Qd4 {[%emt 0:00:30]} 25. Rf1 {[%emt 0:00:30]} g6 {[%emt 0:01:30]} 26. Qb7 {[%emt 0:00:00]} Kg7 {[%emt 0:00:30]} 27. Qe7 {[%emt 0:00:00]} h5 {[%emt 0:01:30]} 28. Kg2 {[%emt 0:03:30]} a5 {[%emt 0:05:30]} 29. h4 {[%emt 0:04:30]} Rc2 {[%emt 0:01:30]} 30. Qb7 {[%emt 0:02:30]} Qd2 {[%emt 0:14:30]} 31. Qe7 {[%emt 0:00:00]} Qd4 {[%emt 0:01:30]} 32. Qb7 {[%emt 0:00:00]} Qe5 {[%emt 0:01:30]} 33. Qa7 {[%emt 0:00:30]} g5 {[%emt 0:00:00]} 34. hxg5 {[%emt 0:01:30]} Qxg5 {[%emt 0:00:00]} 35. Rh1 {[%emt 0:00:30]} Qe5 {[%emt 0:08:30]} 36. Rh4 {[%emt 0:02:30]} Kg6 {[%emt 0:09:30]} 37. Rf4 {[%emt 0:08:30]} Qc7 {[%emt 0:00:30]} 38. Qd4 {[%emt 0:02:30]} Qc3 {[%emt 0:04:30]} 39. Qb6+ {[%emt 0:00:30]} Kg7 {[%emt 0:00:57]} 40. Bc4 {[%emt 0:01:30]} Qe5 {[%emt 0:00:32]} 41. Qa7 {[%emt 0:00:30]} Kh8 {[%emt 0:01:01]} 42. Bd5 {[%emt 0:06:30]} f5 {[%emt 0:01:43]} 43. Qb6 {[%emt 0:02:30]} Kg7 {[%emt 0:00:06]} 44. Qb7+ {[%emt 0:00:30]} Kh8 {[%emt 0:00:01]} 45. Qb5 {[%emt 0:04:30]} Kg7 {[%emt 0:00:13]} 46. Qd7+ {[%emt 0:03:30]} Kh8 {[%emt 0:00:32]} 47. Bc4 {[%emt 0:01:30]} Rf6 {[%emt 0:04:05]} 48. exf5 {[%emt 0:04:36]} 1-0

[Event "24th Bosnjaci Open 2019"]
[Site "Bosnjaci"]
[Date "2019.01.06"]
[Round "5.23"]
[White "Kovac, Petar"]
[Black "Lesic, Krunoslav"]
[Result "1/2-1/2"]
[ECO "E08"]
[WhiteElo "1747"]
[BlackElo "2067"]
[Annotator "NA"]
[PlyCount "90"]
[EventDate "2019.01.03"]
[EventType "swiss"]
[EventCountry "CRO"]
[SourceTitle "playchess.com"]
[Source "ChessBase"]
[SourceQuality "1"]
[TimeControl "5400+30"]

1. d4 {[%emt 0:00:30]} Nf6 {[%emt 0:06:30]} 2. c4 {[%emt 0:00:00]} e6 {[%emt 0:00:30]} 3. Nf3 {[%emt 0:00:00]} d5 {[%emt 0:00:30]} 4. g3 {[%emt 0:00:30]} Be7 {[%emt 0:01:30]} 5. Bg2 {[%emt 0:00:00]} O-O {[%emt 0:00:30]} 6. O-O {[%emt 0:00:00]} Nbd7 {[%emt 0:01:30]} 7. Qc2 {[%emt 0:01:30]} c6 {[%emt 0:07:30]} 8. Bf4 {[%emt 0:05:30]} Nh5 {[%emt 0:03:30]} 9. Nbd2 {[%emt 0:05:30]} Nxf4 {[%emt 0:00:30]} 10. gxf4 {[%emt 0:00:00]} c5 {[%emt 0:03:30]} 11. cxd5 {[%emt 0:07:00]} exd5 {[%emt 0:00:30]} 12. dxc5 {[%emt 0:01:30]} Nxc5 {[%emt 0:00:30]} 13. Rfd1 {[%emt 0:09:30]} Qb6 {[%emt 0:03:30]} 14. Rac1 {[%emt 0:04:30]} g6 {[%emt 0:02:30]} 15. Nd4 {[%emt 0:06:30]} Rd8 {[%emt 0:03:30]} 16. h3 {[%emt 0:09:30]} Bd7 {[%emt 0:12:30]} 17. e3 {[%emt 0:10:30]} Rac8 {[%emt 0:03:30]} 18. Qb1 {[%emt 0:01:30]} Bf6 {[%emt 0:04:30]} 19. N2f3 {[%emt 0:04:30]} Na4 {[%emt 0:07:30]} 20. Rd2 {[%emt 0:02:30]} Rxc1+ {[%emt 0:00:30]} 21. Qxc1 {[%emt 0:00:30]} Rc8 {[%emt 0:00:00]} 22. Qb1 {[%emt 0:00:30]} Nc3 {[%emt 0:01:00]} 23. Qa1 {[%emt 0:02:30]} Ne4 {[%emt 0:04:30]} 24. Rd1 {[%emt 0:01:30]} Qa5 {[%emt 0:03:30]} 25. Nb3 {[%emt 0:02:30]} Qb4 {[%emt 0:01:30]} 26. Nbd4 {[%emt 0:01:30]} a5 {[%emt 0:03:30]} 27. Rc1 {[%emt 0:03:30]} Rc5 {[%emt 0:02:30]} 28. a3 {[%emt 0:00:49]} Qb6 {[%emt 0:00:30]} 29. Qb1 {[%emt 0:02:39]} Qc7 {[%emt 0:03:18]} 30. Rxc5 {[%emt 0:01:04]} Qxc5 {[%emt 0:00:02]} 31. Qd1 {[%emt 0:00:57]} a4 {[%emt 0:02:11]} 32. Qe1 {[%emt 0:01:44]} b5 {[%emt 0:01:08]} 33. Ne5 {[%emt 0:02:18]} Bc8 {[%emt 0:04:44]} 34. Bf1 {[%emt 0:01:23]} Bh4 {[%emt 0:00:29]} 35. Nd3 {[%emt 0:01:40]} Qe7 {[%emt 0:02:59]} 36. Qc1 {[%emt 0:02:25]} Bd7 {[%emt 0:01:13]} 37. Qc2 {[%emt 0:01:59]} g5 {[%emt 0:01:47]} 38. Nf3 {[%emt 0:01:33]} gxf4 {[%emt 0:00:48]} 39. Nxh4 {[%emt 0:00:20]} Qxh4 {[%emt 0:00:17]} 40. Nxf4 {[%emt 0:00:13]} Ng5 {[%emt 0:00:44]} 41. Qe2 {[%emt 0:02:24]} Bf5 {[%emt 0:02:12]} 42. Nxd5 {[%emt 0:02:09]} Kg7 {[%emt 0:03:26]} 43. Bg2 {[%emt 0:02:31]} Bxh3 {[%emt 0:02:14]} 44. f4 {[%emt 0:01:02]} Bxg2 {[%emt 0:01:03]} 45. Qxg2 {[%emt 0:00:13]} Qe1+ {[%emt 0:00:19]} 1/2-1/2

[Event "24th Bosnjaci Open 2019"]
[Site "Bosnjaci"]
[Date "2019.01.06"]
[Round "5.24"]
[White "Lombarovic, Marko"]
[Black "Duda, Daniel"]
[Result "0-1"]
[ECO "B27"]
[WhiteElo "1764"]
[BlackElo "1991"]
[Annotator "NA"]
[PlyCount "40"]
[EventDate "2019.01.03"]
[EventType "swiss"]
[EventCountry "CRO"]
[SourceTitle "playchess.com"]
[Source "ChessBase"]
[SourceQuality "1"]
[TimeControl "5400+30"]

1. e4 {[%emt 0:00:30]} c5 {[%emt 0:00:30]} 2. Nf3 {[%emt 0:00:30]} g6 {[%emt 0:00:00]} 3. c3 {[%emt 0:00:00]} Bg7 {[%emt 0:00:00]} 4. d4 {[%emt 0:00:00]} cxd4 {[%emt 0:00:00]} 5. cxd4 {[%emt 0:00:00]} d5 {[%emt 0:00:00]} 6. Bb5+ {[%emt 0:00:00]} Bd7 {[%emt 0:05:30]} 7. Bxd7+ {[%emt 0:03:30]} Qxd7 {[%emt 0:03:30]} 8. exd5 {[%emt 0:01:30]} Nf6 {[%emt 0:02:30]} 9. Ne5 {[%emt 0:00:30]} Qxd5 {[%emt 0:00:30]} 10. O-O {[%emt 0:00:30]} Nc6 {[%emt 0:03:30]} 11. Nxc6 {[%emt 0:03:30]} Qxc6 {[%emt 0:02:30]} 12. Nc3 {[%emt 0:00:30]} Rd8 {[%emt 0:08:30]} 13. Be3 {[%emt 0:01:30]} O-O {[%emt 0:06:30]} 14. Rc1 {[%emt 0:00:30]} e5 {[%emt 0:05:30]} 15. Ne2 {[%emt 0:00:30]} Qe4 {[%emt 0:00:30]} 16. Qa4 {[%emt 0:00:30]} exd4 {[%emt 0:01:30]} 17. Nxd4 {[%emt 0:01:30]} Ng4 {[%emt 0:00:30]} 18. Kh1 {[%emt 0:13:30]} Bxd4 {[%emt 0:00:30]} 19. Rc4 {[%emt 0:00:30]} Nxe3 {[%emt 0:00:30]} 20. fxe3 {[%emt 0:00:00]} Qxe3 {[%emt 0:00:30]} 0-1

[Event "24th Bosnjaci Open 2019"]
[Site "Bosnjaci"]
[Date "2019.01.06"]
[Round "6.7"]
[White "Beletic, Daniel"]
[Black "Ljikar, Zoran"]
[Result "1-0"]
[ECO "D42"]
[WhiteElo "2371"]
[BlackElo "2207"]
[Annotator "NA"]
[PlyCount "45"]
[EventDate "2019.01.03"]
[EventType "swiss"]
[EventCountry "CRO"]
[SourceTitle "playchess.com"]
[Source "ChessBase"]
[SourceQuality "1"]
[TimeControl "5400+30"]

1. Nf3 {[%emt 0:00:30]} d5 {[%emt 0:02:30]} 2. d4 {[%emt 0:03:30]} c5 {[%emt 0:01:30]} 3. e3 {[%emt 0:02:30]} Nc6 {[%emt 0:00:30]} 4. c4 {[%emt 0:01:30]} cxd4 {[%emt 0:06:30]} 5. cxd5 {[%emt 0:07:30]} Qxd5 {[%emt 0:03:30]} 6. Nc3 {[%emt 0:02:30]} Qd8 {[%emt 0:00:30]} 7. exd4 {[%emt 0:00:00]} e6 {[%emt 0:00:30]} 8. Bd3 {[%emt 0:02:00]} Nf6 {[%emt 0:01:30]} 9. O-O {[%emt 0:00:00]} Be7 {[%emt 0:00:00]} 10. a3 {[%emt 0:02:00]} O-O {[%emt 0:00:00]} 11. Bc2 {[%emt 0:00:30]} b6 {[%emt 0:07:30]} 12. Qd3 {[%emt 0:02:30]} Bb7 {[%emt 0:06:30]} 13. Re1 {[%emt 0:01:30]} Rc8 {[%emt 0:01:30]} 14. d5 {[%emt 0:02:30]} exd5 {[%emt 0:04:30]} 15. Bg5 {[%emt 0:00:30]} Ne4 {[%emt 0:04:30]} 16. Nxe4 {[%emt 0:10:30]} dxe4 {[%emt 0:00:30]} 17. Qxe4 {[%emt 0:00:30]} f5 {[%emt 0:00:30]} 18. Qh4 {[%emt 0:08:30]} Rc7 {[%emt 0:07:30]} 19. Rad1 {[%emt 0:05:30]} Qe8 {[%emt 0:00:30]} 20. Bb3+ {[%emt 0:01:30]} Kh8 {[%emt 0:00:30]} 21. Bd5 {[%emt 0:01:30]} Qg6 {[%emt 0:00:30]} 22. Bxe7 {[%emt 0:01:30]} Nxe7 {[%emt 0:01:30]} 23. Bxb7 {[%emt 0:00:30]} 1-0

[Event "24th Bosnjaci Open 2019"]
[Site "Bosnjaci"]
[Date "2019.01.06"]
[Round "6.8"]
[White "Zovko, Mario"]
[Black "Blagojevic, Marijan"]
[Result "1/2-1/2"]
[ECO "B22"]
[WhiteElo "2318"]
[BlackElo "2203"]
[Annotator "NA"]
[PlyCount "33"]
[EventDate "2019.01.03"]
[EventType "swiss"]
[EventCountry "CRO"]
[SourceTitle "playchess.com"]
[Source "ChessBase"]
[SourceQuality "1"]
[TimeControl "5400+30"]

1. e4 {[%emt 0:02:30]} c5 {[%emt 0:00:30]} 2. c3 {[%emt 0:00:30]} d5 {[%emt 0:03:30]} 3. exd5 {[%emt 0:00:30]} Qxd5 {[%emt 0:00:30]} 4. d4 {[%emt 0:00:30]} Nc6 {[%emt 0:02:30]} 5. Nf3 {[%emt 0:00:30]} Nf6 {[%emt 0:05:30]} 6. Be3 $11 {[%emt 0:03:30] LiveBook: 289 Games} cxd4 {[%emt 0:04:30]} 7. cxd4 {[%emt 0:02:30]} e6 {[%emt 0:02:30]} 8. a3 {[%emt 0:02:30]} Be7 {[%emt 0:00:30]} 9. Nc3 {[%emt 0:00:00]} Qa5 {[%emt 0:05:30]} 10. b4 {[%emt 0:03:00]} Qd8 {[%emt 0:02:30]} 11. Bb5 {[%emt 0:04:30]} O-O {[%emt 0:00:30]} 12. O-O {[%emt 0:00:00]} a5 {[%emt 0:03:30]} 13. bxa5 {[%emt 0:09:00]} Rxa5 {[%emt 0:01:30]} 14. a4 {[%emt 0:01:30]} Nb4 {[%emt 0:06:30]} 15. Qb3 {[%emt 0:03:30]} b6 {[%emt 0:09:30]} 16. Ne5 {[%emt 0:06:30]} Bb7 {[%emt 0:03:30]} 17. Rfd1 {[%emt 0:00:30]} 1/2-1/2

[Event "24th Bosnjaci Open 2019"]
[Site "Bosnjaci"]
[Date "2019.01.08"]
[Round "6.9"]
[White "Babic, Zvonko"]
[Black "Klasan, Vladimir"]
[Result "1/2-1/2"]
[ECO "B85"]
[WhiteElo "2190"]
[BlackElo "2364"]
[Annotator "ChessBase"]
[PlyCount "57"]
[EventDate "2019.01.03"]
[EventType "swiss"]
[EventCountry "CRO"]
[TimeControl "5400+30"]

1. Nf3 {[%emt 0:00:30]} c5 {[%emt 0:02:30]} 2. e4 {[%emt 0:00:00]} Nc6 {[%emt 0:00:30]} 3. d4 {[%emt 0:01:00]} cxd4 {[%emt 0:00:30]} 4. Nxd4 {[%emt 0:00:30]} Nf6 {[%emt 0:00:30]} 5. Nc3 {[%emt 0:00:00]} d6 {[%emt 0:00:00]} 6. Bc4 {[%emt 0:01:00]} Qb6 {[%emt 0:01:00]} 7. Nb3 {[%emt 0:02:30]} e6 {[%emt 0:00:30]} 8. O-O {[%emt 0:01:30]} a6 {[%emt 0:00:30]} 9. a4 {[%emt 0:02:30]} Qc7 {[%emt 0:10:30]} 10. f4 {[%emt 0:08:30]} Be7 {[%emt 0:07:30]} 11. Be2 {[%emt 0:03:30]} O-O {[%emt 0:04:30]} 12. Be3 {[%emt 0:03:30]} b6 {[%emt 0:04:30]} 13. Bf3 {[%emt 0:01:30]} Bb7 {[%emt 0:02:30]} 14. Qe1 {[%emt 0:00:30]} Rfe8 {[%emt 0:05:30]} 15. Rd1 {[%emt 0:01:30]} Nd7 {[%emt 0:08:30]} 16. Qg3 {[%emt 0:05:30]} Rac8 {[%emt 0:06:30]} 17. Kh1 {[%emt 0:02:30]} Bf6 {[%emt 0:02:30]} 18. Nd4 {[%emt 0:04:30]} Na5 {[%emt 0:02:30]} 19. f5 {[%emt 0:11:30]} Nc4 {[%emt 0:03:30]} 20. Bc1 {[%emt 0:08:30]} e5 {[%emt 0:02:30]} 21. Nde2 {[%emt 0:00:30]} Be7 {[%emt 0:03:30]} 22. Qf2 {[%emt 0:11:30]} Bc6 {[%emt 0:07:30]} 23. g4 {[%emt 0:04:30]} b5 {[%emt 0:00:30]} 24. axb5 {[%emt 0:02:30]} axb5 {[%emt 0:00:30]} 25. g5 {[%emt 0:01:30]} b4 {[%emt 0:01:30]} 26. Nb1 {[%emt 0:01:40]} Qb7 {[%emt 0:01:30]} 27. Ng3 {[%emt 0:00:23]} f6 {[%emt 0:05:01]} 28. g6 {[%emt 0:01:28]} h6 {[%emt 0:00:30]} 29. Nh5 {[%emt 0:02:13]} 1/2-1/2

[Event "24th Bosnjaci Open 2019"]
[Site "Bosnjaci"]
[Date "2019.01.06"]
[Round "6.10"]
[White "Goric, Esad"]
[Black "Slobodjanac, Sinisa"]
[Result "1-0"]
[ECO "A46"]
[WhiteElo "2260"]
[BlackElo "1797"]
[Annotator "NA"]
[PlyCount "93"]
[EventDate "2019.01.03"]
[EventType "swiss"]
[EventCountry "CRO"]
[SourceTitle "playchess.com"]
[Source "ChessBase"]
[SourceQuality "1"]
[TimeControl "5400+30"]

1. Nf3 {[%emt 0:00:30]} Nf6 {[%emt 0:00:30]} 2. b3 {[%emt 0:00:00]} d6 {[%emt 0:00:00]} 3. d4 {[%emt 0:00:00]} c6 {[%emt 0:01:00]} 4. Bb2 {[%emt 0:00:30]} Nbd7 {[%emt 0:00:30]} 5. e3 {[%emt 0:00:00]} Qc7 {[%emt 0:00:30]} 6. Be2 {[%emt 0:00:00]} e5 {[%emt 0:00:30]} 7. c4 {[%emt 0:00:30]} Be7 {[%emt 0:00:30]} 8. Nc3 {[%emt 0:00:00]} O-O {[%emt 0:00:00]} 9. O-O {[%emt 0:00:00]} a6 {[%emt 0:00:00]} 10. Rc1 {[%emt 0:00:30]} Re8 {[%emt 0:01:30]} 11. Qc2 {[%emt 0:00:30]} Bf8 {[%emt 0:19:30]} 12. Rfd1 {[%emt 0:03:30]} g6 {[%emt 0:08:30]} 13. Qb1 {[%emt 0:00:30]} Bg7 {[%emt 0:03:30]} 14. Qa1 {[%emt 0:00:30]} exd4 {[%emt 0:21:30]} 15. Rxd4 {[%emt 0:03:30]} Ne5 {[%emt 0:12:30]} 16. Rcd1 {[%emt 0:04:30]} Nxf3+ {[%emt 0:01:30]} 17. Bxf3 {[%emt 0:00:00]} Rd8 {[%emt 0:00:30]} 18. R4d2 {[%emt 0:00:00]} Ne8 {[%emt 0:10:52]} 19. Ne4 {[%emt 0:01:30]} Bxb2 {[%emt 0:00:31]} 20. Qxb2 {[%emt 0:00:00]} Qe7 {[%emt 0:00:08]} 21. Qa3 {[%emt 0:01:00]} Qe5 {[%emt 0:02:25]} 22. Nxd6 {[%emt 0:00:30]} Nxd6 {[%emt 0:00:15]} 23. Rxd6 {[%emt 0:00:30]} Rxd6 {[%emt 0:00:13]} 24. Qxd6 {[%emt 0:00:00]} Qxd6 {[%emt 0:00:32]} 25. Rxd6 {[%emt 0:00:00]} Be6 {[%emt 0:00:09]} 26. Be2 {[%emt 0:02:30]} a5 {[%emt 0:00:54]} 27. a3 {[%emt 0:00:30]} Kf8 {[%emt 0:00:05]} 28. f3 {[%emt 0:00:30]} Ke7 {[%emt 0:00:15]} 29. Rd2 {[%emt 0:00:30]} b6 {[%emt 0:01:40]} 30. Kf2 {[%emt 0:00:30]} Rb8 {[%emt 0:01:25]} 31. e4 {[%emt 0:00:30]} c5 {[%emt 0:00:50]} 32. Ke3 {[%emt 0:01:30]} a4 {[%emt 0:07:22]} 33. Rb2 {[%emt 0:03:30]} Ra8 {[%emt 0:01:22]} 34. b4 {[%emt 0:00:30]} Rd8 {[%emt 0:01:48]} 35. bxc5 {[%emt 0:00:30]} bxc5 {[%emt 0:00:09]} 36. Rb5 {[%emt 0:00:30]} Kd6 {[%emt 0:00:33]} 37. Kd3 {[%emt 0:02:30]} Kc6+ {[%emt 0:02:56]} 38. Kc3 {[%emt 0:00:00]} Bd7 {[%emt 0:01:10]} 39. f4 {[%emt 0:01:00]} f6 {[%emt 0:00:43]} 40. Bf3 {[%emt 0:01:30]} Kd6 {[%emt 0:00:16]} 41. e5+ {[%emt 0:01:30]} fxe5 {[%emt 0:00:23]} 42. fxe5+ {[%emt 0:00:30]} Kxe5 {[%emt 0:00:17]} 43. Rxc5+ {[%emt 0:00:00]} Kd6 {[%emt 0:00:48]} 44. Ra5 {[%emt 0:01:00]} Rb8 {[%emt 0:00:17]} 45. c5+ {[%emt 0:01:30]} Kc7 {[%emt 0:01:04]} 46. Ra7+ {[%emt 0:00:30]} Kc8 {[%emt 0:00:25]} 47. Ra8 {[%emt 0:00:30]} 1-0

[Event "24th Bosnjaci Open 2019"]
[Site "Bosnjaci"]
[Date "2019.01.08"]
[Round "6.11"]
[White "Katic, Zeljko"]
[Black "Cvitan, Ena"]
[Result "0-1"]
[ECO "A06"]
[WhiteElo "2035"]
[BlackElo "2201"]
[Annotator "ChessBase"]
[PlyCount "72"]
[EventDate "2019.01.03"]
[EventType "swiss"]
[EventCountry "CRO"]
[TimeControl "5400+30"]

1. Nf3 {[%emt 0:00:30]} d5 {[%emt 0:00:30]} 2. b3 {[%emt 0:01:30]} Nf6 {[%emt 0:00:30]} 3. Bb2 {[%emt 0:00:30]} e6 {[%emt 0:00:00]} 4. e3 {[%emt 0:00:00]} Bd6 {[%emt 0:00:00]} 5. Be2 {[%emt 0:01:00]} O-O {[%emt 0:03:30]} 6. O-O {[%emt 0:00:30]} b6 {[%emt 0:00:30]} 7. Bd3 {[%emt 0:02:30]} Nbd7 {[%emt 0:04:30]} 8. c4 {[%emt 0:07:30]} e5 {[%emt 0:08:30]} 9. Bf5 {[%emt 0:04:30]} e4 {[%emt 0:04:30]} 10. Nd4 {[%emt 0:02:30]} dxc4 {[%emt 0:07:30]} 11. bxc4 {[%emt 0:02:30]} Ne5 {[%emt 0:01:30]} 12. Qc2 {[%emt 0:04:30]} c5 {[%emt 0:02:30]} 13. Bxc8 {[%emt 0:00:30]} Qxc8 {[%emt 0:00:30]} 14. Ne2 {[%emt 0:01:30]} Nf3+ {[%emt 0:01:30]} 15. Kh1 {[%emt 0:01:30]} Nxh2 {[%emt 0:00:30]} 16. Bxf6 {[%emt 0:10:30]} Nxf1 {[%emt 0:05:30]} 17. Qxe4 {[%emt 0:06:30]} Qe6 {[%emt 0:02:30]} 18. Qxe6 {[%emt 0:07:30]} fxe6 {[%emt 0:00:00]} 19. Bh4 {[%emt 0:00:30]} g5 {[%emt 0:04:00]} 20. Kg1 {[%emt 0:01:30]} Nxd2 {[%emt 0:06:30]} 21. Nxd2 {[%emt 0:02:30]} gxh4 {[%emt 0:00:30]} 22. Ne4 {[%emt 0:00:30]} Be5 {[%emt 0:00:30]} 23. Rb1 {[%emt 0:00:30]} Rad8 {[%emt 0:00:30]} 24. Rc1 {[%emt 0:02:30]} Rd3 {[%emt 0:00:30]} 25. N2c3 {[%emt 0:09:30]} Rfd8 {[%emt 0:02:30]} 26. a4 {[%emt 0:04:30]} Bxc3 {[%emt 0:02:30]} 27. Nxc3 {[%emt 0:00:00]} Rd2 {[%emt 0:00:30]} 28. f3 {[%emt 0:01:00]} Rb2 {[%emt 0:00:30]} 29. Ne4 {[%emt 0:00:30]} Rd3 {[%emt 0:01:30]} 30. Re1 {[%emt 0:05:30]} Rdb3 {[%emt 0:02:30]} 31. Kh2 {[%emt 0:00:30]} Rb1 {[%emt 0:00:30]} 32. Re2 {[%emt 0:00:30]} R3b2 {[%emt 0:00:00]} 33. Rxb2 {[%emt 0:03:20]} Rxb2 {[%emt 0:00:00]} 34. a5 {[%emt 0:00:15]} bxa5 {[%emt 0:00:30]} 35. Nxc5 {[%emt 0:00:05]} Rc2 {[%emt 0:00:30]} 36. Nxe6 {[%emt 0:00:17]} Rxc4 {[%emt 0:00:30]} 0-1